[Event "French-ch U12-U14 2024"]
[Site "Agen"]
[Date "2024.04.16"]
[Round "4.9"]
[White "El Zein, Bassam"]
[Black "Le Geay, Joachim"]
[Result "1-0"]
[ECO "A46"]
[WhiteElo "1924"]
[BlackElo "1792"]
[Annotator "NA RC"]
[PlyCount "123"]
[EventDate "2024.04.14"]
[EventType "swiss"]
[EventCountry "FRA"]
[SourceTitle "playchess.com"]
[Source "ChessBase"]
[SourceQuality "1"]
[TimeControl "5400+30"]

1. Nf3 {[%emt 0:00:03]} Nf6 {[%emt 0:00:24]} 2. g3 {[%emt 0:00:10]} d5 {[%emt 0:00:42]} 3. Bg2 {[%emt 0:00:18]} e6 {[%emt 0:00:39]} 4. O-O {[%emt 0:00:26]} Be7 {[%emt 0:00:42]} 5. d4 {[%emt 0:00:22]} b5 {[%emt 1:30:33]} 6. c3 {[%emt 0:01:57]} O-O {[%emt 0:00:00]} 7. Nbd2 {[%emt 0:02:44]} c5 {[%emt 0:00:00]} 8. Re1 {[%emt 0:05:13]} Bb7 {[%emt 0:00:00]} 9. Qb3 {[%emt 0:05:30]} a6 {[%emt 0:00:00]} 10. Nf1 {[%emt 0:06:41]} cxd4 {[%emt 0:00:00]} 11. cxd4 {[%emt 0:00:35]} Nc6 {[%emt 0:00:00]} 12. Bd2 {[%emt 0:03:35]} Qb6 {[%emt 0:00:00]} 13. e3 {[%emt 0:06:50]} b4 {[%emt 0:00:00]} 14. Qd3 {[%emt 0:03:04]} a5 {[%emt 0:00:00]} 15. b3 {[%emt 0:05:15]} Ba6 {[%emt 0:00:00]} 16. Qc2 {[%emt 0:00:32]} Rfc8 {[%emt 0:00:00]} 17. Qb2 {[%emt 0:00:50]} Na7 {[%emt 0:00:00]} 18. Rec1 {[%emt 0:00:51]} Qb7 {[%emt 0:00:00]} 19. Ne5 {[%emt 0:01:00]} Bd6 {[%emt 0:00:00]} 20. Nc4 {[%emt 0:03:46]} Qc7 {[%emt 0:00:00]} 21. Nxd6 {[%emt 0:00:37]} Qxd6 {[%emt 0:00:00]} 22. a3 {[%emt 0:00:13]} Rxc1 {[%emt 0:00:00]} 23. Qxc1 {[%emt 0:01:04]} Rc8 {[%emt 0:00:00]} 24. Qb2 {[%emt 0:00:23]} Bd3 {[%emt 0:00:00]} 25. Rc1 {[%emt 0:04:52]} Rxc1 {[%emt 0:00:00]} 26. Bxc1 {[%emt 0:00:39]} Nb5 {[%emt 0:00:00]} 27. axb4 {[%emt 0:01:08]} axb4 {[%emt 0:00:00]} 28. Qd2 {[%emt 0:01:14]} Be4 {[%emt 0:00:00]} 29. Bb2 {[%emt 0:00:58]} Bxg2 {[%emt 0:00:00]} 30. Kxg2 {[%emt 0:00:05]} Ne4 {[%emt 0:00:00]} 31. Qd3 {[%emt 0:00:07]} Qc6 {[%emt 0:00:00]} 32. Nd2 {[%emt 0:00:26]} Nbc3 {[%emt 0:00:00]} 33. Nb1 {[%emt 0:03:47]} Qb5 {[%emt 0:00:00]} 34. Qxb5 {[%emt 0:00:53]} Nxb5 {[%emt 0:00:00]} 35. f3 {[%emt 0:02:26]} Nec3 {[%emt 0:00:00]} 36. Nxc3 {[%emt 0:02:27]} bxc3 {[%emt 0:00:00]} 37. Ba1 {[%emt 0:01:52]} e5 {[%emt 0:00:00]} 38. dxe5 {[%emt 0:00:13]} d4 {[%emt 0:00:00]} 39. Kf2 {[%emt 0:00:45]} c2 {[%emt 0:00:00]} 40. Bb2 {[%emt 0:00:05]} Nc3 {[%emt 0:00:00]} 41. exd4 {[%emt 0:05:32]} Na2 {[%emt 0:00:00]} 42. b4 {[%emt 0:01:39]} c1=Q {[%emt 0:00:00]} 43. Bxc1 {[%emt 0:00:01]} Nxc1 {[%emt 0:00:00]} 44. b5 {[%emt 0:00:01]} Nb3 {[%emt 0:00:00]} 45. Ke3 {[%emt 0:00:28]} Kf8 {[%emt 0:00:00]} 46. Kd3 {[%emt 0:00:05]} Na5 {[%emt 0:00:57]} 47. Kc3 {[%emt 0:00:16]} Ke7 {[%emt 0:00:27]} 48. Kb4 {[%emt 0:00:27]} Nb7 {[%emt 0:00:04]} 49. d5 {[%emt 0:00:11]} Kd7 {[%emt 0:04:54]} 50. b6 {[%emt 0:01:32]} g5 {[%emt 0:01:38]} 51. h3 {[%emt 0:04:01]} h5 {[%emt 0:01:45]} 52. h4 {[%emt 0:01:44]} gxh4 {[%emt 0:00:49]} 53. gxh4 {[%emt 0:00:15]} f6 {[%emt 0:04:36]} 54. f4 {[%emt 0:01:05]} fxe5 {[%emt 0:00:57]} 55. fxe5 {[%emt 0:00:03]} Kc8 {[%emt 0:00:31]} 56. e6 {[%emt 0:02:26]} Nd6 {[%emt 0:04:30]} 57. Kc5 {[%emt 0:00:15]} Nb7+ {[%emt 0:00:31]} 58. Kc6 {[%emt 0:00:34]} Na5+ {[%emt 0:01:07]} 59. Kd6 {[%emt 0:01:00]} Nc4+ {[%emt 0:02:38]} 60. Ke7 {[%emt 0:00:39]} Kb7 {[%emt 0:01:34]} 61. d6 {[%emt 0:00:08]} Kxb6 {[%emt 0:00:31]} 62. d7 {[%emt 0:00:06]} 1-0

[Event "French-ch U12-U14 2024"]
[Site "Agen"]
[Date "2024.04.16"]
[Round "4.10"]
[White "Bat, Sodcetsen"]
[Black "Dang, Louis"]
[Result "1/2-1/2"]
[ECO "C45"]
[WhiteElo "2012"]
[BlackElo "1762"]
[Annotator "TA"]
[PlyCount "129"]
[EventDate "2024.04.14"]
[EventType "swiss"]
[EventCountry "FRA"]
[SourceTitle "playchess.com"]
[Source "ChessBase"]
[SourceQuality "1"]
[TimeControl "5400+30"]

{[%evp 10,129,2,1,5,-13,-19,-22,-22,-19,-10,-10,-16,-18,-34,-31,-6,-20,-7,-27,0,0,2,-16,-8,-30,0,-5,0,-17,-9,0,0,-8,0,0,0,-7,0,0,0,0,0,0,0,0,0,0,0,0,0,-4,0,-63,-60,-35,0,0,0,0,0,0,26,33,35,4,9,8,22,29,28,-8,-8,-8,0,0,0,0,18,23,47,-2,-8,-7,0,0,0,-6,0,0,0,0,22,1,17,0,0,0,0,-66,-66,-66,-66,-66,-23,-23,-23,-288,-23,-23,-23,-23,-23,-23,-23,-23,-10,-23,0,-23,-23,-23]} 1. e4 {[%emt 0:00:03]} e5 {[%emt 0:00:09]} 2. Nf3 {[%emt 0:00:06]} Nc6 {[%emt 0:00:07]} 3. d4 {[%emt 0:00:06]} exd4 {[%emt 0:00:12]} 4. Nxd4 {[%emt 0:00:20]} Nf6 {[%emt 0:00:24]} 5. Nxc6 {[%emt 0:00:10]} bxc6 {[%emt 0:00:16]} 6. Nd2 {[%emt 0:00:09]} g6 {[%emt 0:01:03]} 7. b3 {[%emt 0:00:48]} Bg7 {[%emt 0:01:09][%cal Of6e4]} 8. Bb2 {[%emt 0:00:21]} O-O {[%emt 0:01:13] The position is equal.} 9. Bd3 {[%emt 0:00:36]} d5 {[%emt 0:02:22] Black wants to play ...dxe4.} 10. O-O {[%emt 0:02:26]} Re8 {[%emt 0:02:33]} 11. exd5 {[%emt 0:03:17]} cxd5 {[%emt 0:00:11]} 12. Bb5 {[%emt 0:05:19]} Bd7 {[%emt 0:02:49]} 13. Bxd7 {[%emt 0:00:18]} Qxd7 {[%emt 0:00:06]} 14. Nf3 {[%emt 0:00:56]} Qd6 {[%emt 0:09:06]} 15. Qd3 {[%emt 0:05:39]} Rad8 {[%emt 0:06:41]} 16. Bxf6 {[%emt 0:07:10]} Bxf6 {[%emt 0:02:48]} 17. Rad1 {[%emt 0:00:11]} Qf4 {[%emt 0:03:18]} 18. Rfe1 {[%emt 0:07:01]} Re4 {[%emt 0:09:54]} 19. Nd2 {[%emt 0:11:59]} Rd4 {[%emt 0:05:07]} 20. Qf3 {[%emt 0:04:47]} Qg5 {[%emt 0:07:06]} 21. Nf1 {[%emt 0:01:47][%cal Bd2f1,Bf1h2,Bh2f3,Bf3e1,Be1d3,Bd3c5][%mdl 32]} Rxd1 {[%emt 0:02:13]} 22. Rxd1 {[%emt 0:00:54]} c6 {[%emt 0:00:35]} 23. Re1 {[%emt 0:08:25]} Kg7 {[%emt 0:05:50]} 24. g3 {[%emt 0:01:28]} Bd4 {[%emt 0:04:14]} 25. h4 {[%emt 0:06:48]} Qf6 {[%emt 0:03:14]} 26. Nh2 {[%emt 0:02:13]} h5 {[%emt 0:05:10]} 27. Qxf6+ {[%emt 0:00:53]} Bxf6 $11 {[%emt 0:00:34][%mdl 4096] Endgame. KRB-KRN} 28. Nf3 {[%emt 0:00:57]} c5 {[%emt 0:05:19]} 29. Re2 {[%emt 0:06:34]} a5 {[%emt 0:04:05]} 30. Ne1 {[%emt 0:02:13]} a4 {[%emt 0:01:35]} 31. bxa4 {[%emt 0:06:37]} (31. Ng2 $11) 31... Ra8 $15 {[%emt 0:01:32]} 32. Nd3 {[%emt 0:02:10]} Rxa4 {[%emt 0:01:20]} 33. Nxc5 {[%emt 0:00:21]} Rxa2 {[%emt 0:00:12]} 34. Nd3 {[%emt 0:00:19]} d4 {[%emt 0:02:42]} 35. Kg2 {[%emt 0:00:58]} g5 {[%emt 0:02:41]} 36. hxg5 {[%emt 0:01:43]} Bxg5 {[%emt 0:00:16]} 37. f4 {[%emt 0:00:20]} Bf6 {[%emt 0:00:45]} 38. Kf3 {[%emt 0:00:30]} Ra7 {[%emt 0:00:47]} 39. Ke4 {[%emt 0:01:37]} Ra3 {[%emt 0:01:14]} 40. f5 {[%emt 0:01:37]} Kh6 {[%emt 0:01:14]} 41. Kf4 {[%emt 0:03:25]} Rc3 {[%emt 0:03:17]} 42. Rh2 {[%emt 0:00:55]} Bd8 {[%emt 0:01:44]} 43. Ke5 {[%emt 0:03:18]} Bc7+ {[%emt 0:00:59]} 44. Kxd4 {[%emt 0:00:15]} Ra3 {[%emt 0:00:46]} 45. Rg2 {[%emt 0:01:46]} (45. Nf4 $14) 45... Kg5 $11 {[%emt 0:00:26]} 46. c4 {[%emt 0:01:10]} Kxf5 {[%emt 0:00:55]} 47. Rf2+ {[%emt 0:00:27]} Ke6 {[%emt 0:00:25]} 48. Rf3 {[%emt 0:00:22] [#] Hoping for Nc5+.} Ra1 {[%emt 0:01:37]} 49. Nc5+ {[%emt 0:00:31]} Ke7 {[%emt 0:00:14]} 50. Kd5 {[%emt 0:00:44]} Rg1 {[%emt 0:01:03]} 51. Ne4 {[%emt 0:00:27]} f6 {[%emt 0:01:17]} 52. c5 {[%emt 0:01:12]} Rd1+ {[%emt 0:00:32]} 53. Kc6 {[%emt 0:00:13]} Be5 {[%emt 0:00:05]} 54. Nd6 {[%emt 0:00:51]} Bxd6 $15 {[%emt 0:00:22]} 55. cxd6+ {[%emt 0:00:12]} Rxd6+ {[%emt 0:00:04] KR-KR} 56. Kc5 {[%emt 0:00:07]} Rd1 {[%emt 0:00:10] [#] aiming for ...Kf7.} 57. Rf5 $1 {[%emt 0:00:15]} Rh1 {[%emt 0:02:58] White must now prevent ...Ke6.} 58. Kd5 {[%emt 0:00:11][%mdl 8192]} (58. Kd4 $11 {and White is okay.}) 58... Kf7 $2 {[%emt 0:00:00]} ({Black should play} 58... h4 $19 59. gxh4 Rxh4) 59. Ke4 $11 {[%emt 0:00:17]} Kg6 {[%emt 0:00:00] ( -> ...Re1+)} 60. Ra5 {[%emt 0:00:11]} Rf1 {[%emt 0:00:00]} 61. Ra8 {[%emt 0:00:26]} Re1+ {[%emt 0:00:00]} 62. Kf4 {[%emt 0:00:10]} Re7 {[%emt 0:00:00]} 63. Rg8+ {[%emt 0:00:31]} Rg7 {[%emt 0:00:00]} 64. Ra8 {[%emt 0:00:54]} Rb7 {[%emt 0:00:00]} 65. Ke4 {[%emt 0:04:04] Weighted Error Value: White=0.16 (very precise) /Black=0.15 (very precise) .  Loses game:     	White=1     	---        Missed win:     	---       	Black=1      Mistake:       	White=3     	---        Inaccurate:     	White=2     	Black=5      OK:         	White=22    	Black=17     Best:        	White=4     	Black=1      Strong:       	White=1     	---} 1/2-1/2

[Event "French-ch U12-U14 2024"]
[Site "Agen"]
[Date "2024.04.16"]
[Round "4.11"]
[White "Fischler, Ines"]
[Black "Pauly, Juliette"]
[Result "1-0"]
[ECO "C00"]
[WhiteElo "1698"]
[BlackElo "1617"]
[Annotator "NA RC"]
[PlyCount "57"]
[EventDate "2024.04.14"]
[EventType "swiss"]
[EventCountry "FRA"]
[SourceTitle "playchess.com"]
[Source "ChessBase"]
[SourceQuality "1"]
[TimeControl "5400+30"]

1. e4 {[%emt 0:00:03]} e6 {[%emt 0:00:06]} 2. b3 {[%emt 0:00:04]} d5 {[%emt 0:00:09]} 3. Bb2 {[%emt 0:00:05]} dxe4 {[%emt 0:11:34]} 4. Nc3 {[%emt 0:00:14]} Nf6 {[%emt 0:00:08]} 5. Qe2 {[%emt 0:00:05]} Bd6 {[%emt 0:02:04]} 6. Nxe4 {[%emt 0:00:28]} Nxe4 {[%emt 0:01:16]} 7. Qxe4 {[%emt 0:00:27]} O-O {[%emt 0:00:29]} 8. O-O-O {[%emt 0:05:50]} Nd7 {[%emt 0:10:01]} 9. Bd3 {[%emt 0:13:05]} g6 {[%emt 0:03:58]} 10. Nf3 {[%emt 0:05:01]} Be7 {[%emt 0:07:03]} 11. Ne5 {[%emt 0:13:14]} Bf6 {[%emt 0:12:10]} 12. Nxd7 {[%emt 0:00:27]} Bxd7 {[%emt 0:12:11]} 13. Qf4 {[%emt 0:04:35]} Bxb2+ {[%emt 0:01:44]} 14. Kxb2 {[%emt 0:00:06]} a5 {[%emt 0:03:57]} 15. h4 {[%emt 0:04:17]} a4 {[%emt 0:00:09]} 16. h5 {[%emt 0:01:23]} axb3 {[%emt 0:03:06]} 17. axb3 {[%emt 0:00:38]} Qe7 {[%emt 0:04:10]} 18. Ra1 {[%emt 0:00:53]} e5 {[%emt 0:01:36]} 19. Qh6 {[%emt 0:07:35]} Rxa1 {[%emt 0:06:39]} 20. Rf1 {[%emt 0:42:00]} Rb1+ 21. Rxb1 {[%emt 0:00:00]} Qf6 {[%emt 0:01:26]} 22. Ra1 g5 {[%emt 0:00:38]} 23. Rh1 {[%emt 0:00:00]} Be6 {[%emt 0:02:59]} 24. f3 {[%emt 0:00:00]} b5 {[%emt 0:06:59]} 25. Qxg5+ {[%emt 0:00:00]} Qxg5 {[%emt 0:07:54]} 26. b4 {[%emt 0:02:13]} Qh4 {[%emt 0:00:26]} 27. c4 {[%emt 0:00:00]} Qf4 {[%emt 0:00:00]} 28. c5 {[%emt 0:00:00]} Qh4 {[%emt 0:00:05]} 29. c6 {[%emt 0:00:00]} 1-0

[Event "French-ch U12-U14 2024"]
[Site "Agen"]
[Date "2024.04.16"]
[Round "4.12"]
[White "Nicot, Anna"]
[Black "Strievi, Leonie"]
[Result "1-0"]
[ECO "D34"]
[WhiteElo "1649"]
[BlackElo "1602"]
[Annotator "NA RC"]
[PlyCount "73"]
[EventDate "2024.04.14"]
[EventType "swiss"]
[EventCountry "FRA"]
[SourceTitle "playchess.com"]
[Source "ChessBase"]
[SourceQuality "1"]
[TimeControl "5400+30"]

1. d4 {[%emt 0:00:02]} d5 {[%emt 0:00:06]} 2. Nf3 {[%emt 0:00:06]} e6 {[%emt 0:00:22]} 3. g3 {[%emt 0:00:04]} Nf6 {[%emt 0:00:50]} 4. Bg2 {[%emt 0:00:07]} c5 {[%emt 0:01:19]} 5. O-O {[%emt 0:00:19]} Nc6 {[%emt 0:00:46]} 6. c4 {[%emt 0:00:15]} Be7 {[%emt 0:03:22]} 7. Nc3 {[%emt 0:00:35]} O-O {[%emt 0:01:51]} 8. cxd5 {[%emt 0:04:34]} exd5 {[%emt 0:02:10]} 9. dxc5 {[%emt 0:00:40]} Bxc5 {[%emt 0:01:56]} 10. Bg5 {[%emt 0:00:16]} h6 {[%emt 0:02:06]} 11. Bd2 {[%emt 0:02:00]} Be6 {[%emt 0:03:34]} 12. Na4 {[%emt 0:04:26]} Bd6 {[%emt 0:02:16]} 13. Be3 {[%emt 0:04:21]} Ng4 {[%emt 0:13:35]} 14. Bc5 {[%emt 0:02:02]} Rc8 {[%emt 0:08:09]} 15. Bxd6 {[%emt 0:00:12]} Qxd6 {[%emt 0:00:20]} 16. Nc3 {[%emt 0:10:30]} a6 {[%emt 0:06:31]} 17. Nd4 {[%emt 0:04:13]} Nxd4 {[%emt 0:10:56]} 18. Qxd4 {[%emt 0:00:12]} Rc4 {[%emt 0:02:30]} 19. Qd2 {[%emt 0:01:36]} Nf6 {[%emt 0:02:00]} 20. Rfd1 {[%emt 0:15:04]} Rd8 {[%emt 0:03:39]} 21. e4 {[%emt 0:06:30]} d4 {[%emt 0:12:29]} 22. Ne2 {[%emt 0:12:18]} b5 {[%emt 0:08:34]} 23. b3 {[%emt 0:08:01]} Rc5 {[%emt 0:05:38]} 24. Qxd4 {[%emt 0:01:11]} Qxd4 {[%emt 0:01:34]} 25. Rxd4 {[%emt 0:00:09]} Rdc8 {[%emt 0:00:28]} 26. Rd2 {[%emt 0:02:41]} Re5 {[%emt 0:03:21]} 27. f3 {[%emt 0:00:50]} g5 {[%emt 0:01:10]} 28. Rc1 {[%emt 0:02:51]} Rb8 {[%emt 0:00:52]} 29. Rd6 {[%emt 0:00:57]} a5 {[%emt 0:00:33]} 30. Nd4 {[%emt 0:01:13]} Kf8 {[%emt 0:01:00]} 31. Nxe6+ {[%emt 0:00:32]} fxe6 {[%emt 0:00:06]} 32. Rcc6 {[%emt 0:00:27]} Ke7 {[%emt 0:00:12]} 33. f4 {[%emt 0:01:26]} gxf4 {[%emt 0:00:14]} 34. gxf4 {[%emt 0:00:09]} Rh5 {[%emt 0:00:26]} 35. Rxe6+ {[%emt 0:00:15]} Kf7 {[%emt 0:00:27]} 36. Rxf6+ {[%emt 0:00:07]} Ke7 {[%emt 0:00:12]} 37. Rxh6 {[%emt 0:00:09]} 1-0

[Event "French-ch U12-U14 2024"]
[Site "Agen"]
[Date "2024.04.16"]
[Round "4.13"]
[White "Giafferi Bonnet, Luna"]
[Black "Bernard, Ines"]
[Result "0-1"]
[ECO "B26"]
[WhiteElo "1640"]
[BlackElo "1981"]
[Annotator "NA RC"]
[PlyCount "76"]
[EventDate "2024.04.14"]
[EventType "swiss"]
[EventCountry "FRA"]
[SourceTitle "playchess.com"]
[Source "ChessBase"]
[SourceQuality "1"]
[TimeControl "5400+30"]

1. e4 {[%emt 0:00:02]} c5 {[%emt 0:00:06]} 2. Nc3 {[%emt 0:00:10]} Nc6 {[%emt 0:00:03]} 3. g3 {[%emt 0:00:16]} g6 {[%emt 0:00:10]} 4. Bg2 {[%emt 0:00:11]} Bg7 {[%emt 0:00:09]} 5. d3 {[%emt 0:00:34]} d6 {[%emt 0:00:09]} 6. Be3 {[%emt 0:00:35]} Nf6 {[%emt 0:00:31]} 7. h3 {[%emt 0:02:04]} Rb8 {[%emt 0:02:59]} 8. Qd2 {[%emt 0:02:30]} Nd4 {[%emt 0:01:37] B26: Closed Sicilian: 3 g3, lines with early Be3.} 9. Nge2 {[%emt 0:03:44]} Nxe2 {[%emt 0:05:11]} 10. Nxe2 {[%emt 0:01:20]} b5 {[%emt 0:01:12]} 11. a3 {[%emt 0:05:16]} Nd7 {[%emt 0:06:26]} 12. c3 {[%emt 0:03:14]} h5 {[%emt 0:15:07]} 13. h4 {[%emt 0:09:15]} Ne5 {[%emt 0:02:25]} 14. d4 {[%emt 0:12:34]} Nc4 {[%emt 0:00:35]} 15. Qc1 {[%emt 0:00:22]} Nxe3 {[%emt 0:00:57]} 16. Qxe3 {[%emt 0:00:09]} Bh6 {[%emt 0:00:52]} 17. Qd3 {[%emt 0:01:32]} Be6 {[%emt 0:01:29]} 18. d5 {[%emt 0:01:57]} Bg4 {[%emt 0:01:03]} 19. b4 {[%emt 0:03:20]} Qc7 {[%emt 0:03:59]} 20. c4 {[%emt 0:11:50]} Bd7 $17 {[%emt 0:20:37]} (20... cxb4 $19 21. cxb5 Bg7) 21. Qc3 {[%emt 0:06:01]} O-O {[%emt 0:00:11]} 22. Rb1 {[%emt 0:01:14]} cxb4 {[%emt 0:01:12]} 23. Rxb4 {[%emt 0:03:51]} a5 {[%emt 0:01:41]} 24. Rb1 {[%emt 0:01:59]} bxc4 {[%emt 0:01:09]} 25. O-O {[%emt 0:00:54]} Qc5 {[%emt 0:05:12]} 26. Rfd1 {[%emt 0:10:03]} Ba4 {[%emt 0:01:45]} 27. Re1 {[%emt 0:01:22]} Bg7 {[%emt 0:03:49]} 28. Qf3 {[%emt 0:02:46]} Rb3 {[%emt 0:00:45]} 29. Rxb3 {[%emt 0:01:42]} cxb3 {[%emt 0:00:23]} 30. Rb1 {[%emt 0:01:05]} Qc2 {[%emt 0:03:48]} 31. Rc1 {[%emt 0:01:25]} Qxc1+ {[%emt 0:02:02]} 32. Nxc1 {[%emt 0:00:17]} b2 {[%emt 0:00:03]} 33. Nd3 {[%emt 0:00:50]} b1=Q+ {[%emt 0:19:23]} 34. Kh2 {[%emt 0:00:07]} Rb8 {[%emt 0:00:00]} 35. Qe2 {[%emt 0:01:27]} Bb5 {[%emt 0:00:00]} 36. Bf1 {[%emt 0:00:14]} Bxd3 {[%emt 0:00:00]} 37. Qxd3 {[%emt 0:00:08]} Qxd3 {[%emt 0:00:00]} 38. Bxd3 {[%emt 0:00:07]} Rb3 {[%emt 0:00:00]} 0-1

[Event "French-ch U12-U14 2024"]
[Site "Agen"]
[Date "2024.04.16"]
[Round "4.15"]
[White "Menard, Emma"]
[Black "Castagnerol, Cerise"]
[Result "0-1"]
[ECO "E18"]
[WhiteElo "1593"]
[BlackElo "1755"]
[Annotator "NA RC"]
[PlyCount "92"]
[EventDate "2024.04.14"]
[EventType "swiss"]
[EventCountry "FRA"]
[SourceTitle "playchess.com"]
[Source "ChessBase"]
[SourceQuality "1"]
[TimeControl "5400+30"]

1. d4 {[%emt 0:00:01]} d5 {[%emt 0:00:36]} 2. Nf3 {[%emt 0:00:06]} Nf6 {[%emt 0:00:08]} 3. c4 {[%emt 0:00:15]} e6 {[%emt 0:00:21]} 4. g3 {[%emt 0:00:31]} Be7 {[%emt 0:00:19]} 5. Bg2 {[%emt 0:00:21]} O-O {[%emt 0:00:08]} 6. cxd5 {[%emt 0:00:11]} exd5 {[%emt 0:00:16]} 7. O-O {[%emt 0:00:13]} b6 {[%emt 0:00:31]} 8. Nc3 {[%emt 0:00:24]} Bb7 {[%emt 0:04:13]} 9. Bf4 {[%emt 0:01:10]} c5 {[%emt 0:03:03]} 10. Rc1 {[%emt 0:03:11]} Nbd7 {[%emt 0:03:35]} 11. Qb3 {[%emt 0:08:03]} cxd4 {[%emt 0:04:30]} 12. Nxd4 {[%emt 0:00:33]} Nc5 {[%emt 0:00:36]} 13. Qd1 {[%emt 0:03:46]} Rc8 {[%emt 0:03:38]} 14. a3 {[%emt 0:07:13]} a6 {[%emt 0:04:32]} 15. Nf5 {[%emt 0:04:30]} Re8 {[%emt 0:13:13]} 16. Nxe7+ {[%emt 0:01:37]} Rxe7 {[%emt 0:05:33]} 17. Bg5 {[%emt 0:03:27]} Rd7 {[%emt 0:00:48]} 18. b4 {[%emt 0:02:39]} Ne6 {[%emt 0:04:31]} 19. Bxf6 {[%emt 0:02:39]} gxf6 {[%emt 0:00:52]} 20. Qd2 {[%emt 0:05:26]} Rc4 {[%emt 0:05:29]} 21. e3 {[%emt 0:02:59]} b5 {[%emt 0:02:39]} 22. Ne2 {[%emt 0:03:30]} a5 {[%emt 0:12:06]} 23. Rfd1 {[%emt 0:08:18]} Rxc1 {[%emt 0:11:11]} 24. Rxc1 {[%emt 0:00:30]} a4 {[%emt 0:05:26]} 25. Nd4 {[%emt 0:03:20]} Qb6 {[%emt 0:01:16]} 26. Bf1 {[%emt 0:06:44]} Ng5 {[%emt 0:03:22]} 27. Bxb5 {[%emt 0:04:47]} Qxb5 {[%emt 0:01:33]} 28. Nxb5 {[%emt 0:01:01]} Nf3+ {[%emt 0:01:50]} 29. Kg2 {[%emt 0:00:04]} Nxd2 {[%emt 0:00:14]} 30. Rd1 {[%emt 0:01:33]} d4+ {[%emt 0:05:01]} 31. Kh3 {[%emt 0:01:32]} dxe3 {[%emt 0:00:22]} 32. fxe3 {[%emt 0:00:02]} Bf3 {[%emt 0:00:38]} 33. Rc1 {[%emt 0:01:48]} Rd5 {[%emt 0:01:36]} 34. Rc5 {[%emt 0:01:54]} Rxc5 {[%emt 0:00:02]} 35. bxc5 {[%emt 0:00:03]} Nb3 {[%emt 0:00:46]} 36. g4 {[%emt 0:01:20]} Nxc5 {[%emt 0:00:52]} 37. Kg3 {[%emt 0:00:03]} Bd1 {[%emt 0:01:09]} 38. Kf4 {[%emt 0:01:04]} Kf8 {[%emt 0:00:27]} 39. h3 {[%emt 0:00:45]} Ke7 {[%emt 0:00:51]} 40. g5 {[%emt 0:00:22]} Ne6+ {[%emt 0:00:40]} 41. Kg3 {[%emt 0:00:40]} fxg5 {[%emt 0:00:18]} 42. e4 {[%emt 0:00:53]} Nc5 {[%emt 0:01:00]} 43. Nc3 {[%emt 0:01:07]} Bc2 {[%emt 0:00:33]} 44. Kg4 {[%emt 0:00:09]} Nxe4 {[%emt 0:00:20]} 45. Ne2 {[%emt 0:01:06]} Bd1 {[%emt 0:00:07]} 46. Kf3 {[%emt 0:00:02]} Bxe2+ {[%emt 0:00:19]} 0-1